[Event "Late-Titled-Tuesday-Blitz-September-26-2023"]
[Site "Chess.com"]
[Date "2023.09.26"]
[Round "4"]
[White "GMBenjaminBok"]
[Black "Lennis93"]
[Result "1-0"]
[WhiteElo "2966"]
[BlackElo "2726"]
[TimeControl "180+1"]
[EndTime "14:38:55 PDT"]
[Termination "GMBenjaminBok won by resignation"]

1. d4 {[%clk 0:03:00.9]} 1... Nf6 {[%clk 0:02:59.1]} 2. c4 {[%clk 0:03:01.5]}
2... e6 {[%clk 0:02:58.8]} 3. Nc3 {[%clk 0:03:01.6]} 3... Bb4 {[%clk 0:02:56.4]}
4. Qc2 {[%clk 0:03:01.8]} 4... d5 {[%clk 0:02:55.6]} 5. a3 {[%clk 0:03:01.5]}
5... Bxc3+ {[%clk 0:02:55.6]} 6. Qxc3 {[%clk 0:03:02.4]} 6... Ne4 {[%clk
0:02:55.9]} 7. Qc2 {[%clk 0:03:02.3]} 7... c5 {[%clk 0:02:55.7]} 8. dxc5 {[%clk
0:03:00.9]} 8... Nc6 {[%clk 0:02:52.2]} 9. Nf3 {[%clk 0:02:59.4]} 9... Qa5+
{[%clk 0:02:41]} 10. Bd2 {[%clk 0:02:59.5]} 10... Qxc5 {[%clk 0:02:36.8]} 11. e3
{[%clk 0:02:59.9]} 11... Nxd2 {[%clk 0:02:34.2]} 12. Nxd2 {[%clk 0:03:00.8]}
12... O-O {[%clk 0:02:32]} 13. Bd3 {[%clk 0:02:45.8]} 13... h6 {[%clk
0:02:21.4]} 14. cxd5 {[%clk 0:02:45.3]} 14... Qxc2 {[%clk 0:02:02.5]} 15. Bxc2
{[%clk 0:02:46.2]} 15... exd5 {[%clk 0:02:02.5]} 16. Nb3 {[%clk 0:02:43.2]}
16... Be6 {[%clk 0:01:43]} 17. O-O-O {[%clk 0:02:42.8]} 17... Rac8 {[%clk
0:01:41.8]} 18. Kb1 {[%clk 0:02:42.4]} 18... Rc7 {[%clk 0:01:39.9]} 19. Rd2
{[%clk 0:02:36.6]} 19... Rfc8 {[%clk 0:01:39.3]} 20. Rhd1 {[%clk 0:02:27.7]}
20... Ne5 {[%clk 0:01:35.3]} 21. Nd4 {[%clk 0:02:26]} 21... Nc4 {[%clk
0:01:34.5]} 22. Re2 {[%clk 0:02:07.2]} 22... Bd7 {[%clk 0:01:31.1]} 23. Bd3
{[%clk 0:01:56.4]} 23... Ne5 {[%clk 0:01:25.9]} 24. Bf5 {[%clk 0:01:33.2]} 24...
Kf8 {[%clk 0:01:22.5]} 25. Bxd7 {[%clk 0:01:23.3]} 25... Rxd7 {[%clk 0:01:23.4]}
26. Nb5 {[%clk 0:01:20.1]} 26... a6 {[%clk 0:01:20.8]} 27. Nc3 {[%clk
0:01:19.9]} 27... Rc5 {[%clk 0:01:10.7]} 28. Red2 {[%clk 0:01:17.3]} 28... Ng4
{[%clk 0:01:03.6]} 29. h3 {[%clk 0:01:10.9]} 29... Nf6 {[%clk 0:01:03.2]} 30. e4
{[%clk 0:01:08.6]} 30... b5 {[%clk 0:00:23.1]} 31. e5 {[%clk 0:01:06.3]} 31...
Ne8 {[%clk 0:00:17.9]} 32. Rxd5 {[%clk 0:01:06]} 32... Rdc7 {[%clk 0:00:16]} 33.
f4 {[%clk 0:01:01.5]} 33... g5 {[%clk 0:00:14.4]} 34. g3 {[%clk 0:00:54.5]}
34... Ng7 {[%clk 0:00:14.1]} 35. Rd8+ {[%clk 0:00:49.6]} 35... Ke7 {[%clk
0:00:13]} 36. Rg8 {[%clk 0:00:49.1]} 36... Nf5 {[%clk 0:00:10.2]} 37. Nd5+
{[%clk 0:00:47.9]} 37... Rxd5 {[%clk 0:00:10.5]} 38. Rxd5 {[%clk 0:00:48.8]}
38... Nxg3 {[%clk 0:00:10.2]} 39. fxg5 {[%clk 0:00:47.3]} 39... hxg5 {[%clk
0:00:10.6]} 40. Rxg5 {[%clk 0:00:46.3]} 40... Ne4 {[%clk 0:00:11.1]} 41. Rg4
{[%clk 0:00:40.7]} 41... Ke6 {[%clk 0:00:11.5]} 42. Rd8 {[%clk 0:00:29.3]} 42...
Nc5 {[%clk 0:00:06.7]} 43. Rg2 {[%clk 0:00:19.3]} 43... Nb3 {[%clk 0:00:03.8]}
44. Rc2 {[%clk 0:00:17.2]} 44... Ra7 {[%clk 0:00:04.1]} 45. Rc3 {[%clk
0:00:15.1]} 45... Na5 {[%clk 0:00:03.8]} 46. h4 {[%clk 0:00:12.9]} 46... Nc4
{[%clk 0:00:03.7]} 47. h5 {[%clk 0:00:12.6]} 47... Kxe5 {[%clk 0:00:03.4]} 48.
h6 {[%clk 0:00:12.4]} 48... f6 {[%clk 0:00:04.1]} 49. Rh3 {[%clk 0:00:12]} 49...
Rh7 {[%clk 0:00:04.7]} 50. Rg8 {[%clk 0:00:11.7]} 50... Kf5 {[%clk 0:00:04.7]}
51. Rg7 {[%clk 0:00:11.8]} 51... Rh8 {[%clk 0:00:05.3]} 52. h7 {[%clk
0:00:12.2]} 52... Ne5 {[%clk 0:00:05.8]} 53. Rg8 {[%clk 0:00:12.3]} 53... Nf7
{[%clk 0:00:05.9]} 54. Rxh8 {[%clk 0:00:12.8]} 54... Nxh8 {[%clk 0:00:05.9]} 55.
Rg3 {[%clk 0:00:13.4]} 55... Ke6 {[%clk 0:00:02.9]} 56. Rg8 {[%clk 0:00:14.3]}
56... Nf7 {[%clk 0:00:03.4]} 57. Rf8 {[%clk 0:00:14.2]} 57... Nh8 {[%clk
0:00:04.3]} 58. Rxh8 {[%clk 0:00:14.2]} 1-0

[Event "Late-Titled-Tuesday-Blitz-September-26-2023"]
[Site "Chess.com"]
[Date "2023.09.26"]
[Round "4"]
[White "PepeCuenca"]
[Black "JoseRemolar"]
[Result "1-0"]
[WhiteElo "2689"]
[BlackElo "2389"]
[TimeControl "180+1"]
[EndTime "14:38:57 PDT"]
[Termination "PepeCuenca won on time"]

1. c4 {[%clk 0:03:00.9]} 1... Nf6 {[%clk 0:02:57.3]} 2. Nc3 {[%clk 0:02:59.8]}
2... g6 {[%clk 0:02:57.5]} 3. e4 {[%clk 0:03:00.4]} 3... d6 {[%clk 0:02:56.8]}
4. d4 {[%clk 0:03:00.9]} 4... Bg7 {[%clk 0:02:57.3]} 5. h3 {[%clk 0:03:01.7]}
5... O-O {[%clk 0:02:56.9]} 6. Be3 {[%clk 0:03:02.4]} 6... e5 {[%clk 0:02:54.6]}
7. d5 {[%clk 0:03:02.9]} 7... Na6 {[%clk 0:02:55.1]} 8. g4 {[%clk 0:03:02.8]}
8... Nc5 {[%clk 0:02:54.6]} 9. f3 {[%clk 0:03:03.5]} 9... Ne8 {[%clk 0:02:49.7]}
10. b4 {[%clk 0:02:52.9]} 10... Na6 {[%clk 0:02:46.4]} 11. a3 {[%clk 0:02:53]}
11... f5 {[%clk 0:02:15.1]} 12. Qd2 {[%clk 0:02:48.7]} 12... Qe7 {[%clk
0:01:54.2]} 13. O-O-O {[%clk 0:02:41.8]} 13... c5 {[%clk 0:01:52.3]} 14. b5
{[%clk 0:02:28.5]} 14... Nac7 {[%clk 0:01:49.8]} 15. gxf5 {[%clk 0:02:27.1]}
15... gxf5 {[%clk 0:01:49.8]} 16. h4 {[%clk 0:02:27.2]} 16... f4 {[%clk
0:01:35.3]} 17. Bf2 {[%clk 0:02:26.2]} 17... Nf6 {[%clk 0:01:35.9]} 18. Bh3
{[%clk 0:02:22.6]} 18... Nh5 {[%clk 0:01:29.7]} 19. Bxc8 {[%clk 0:02:22]} 19...
Raxc8 {[%clk 0:01:30.6]} 20. Nge2 {[%clk 0:02:15.7]} 20... a6 {[%clk 0:01:29.7]}
21. a4 {[%clk 0:02:07.3]} 21... axb5 {[%clk 0:01:28.8]} 22. axb5 {[%clk
0:02:07.6]} 22... Ra8 {[%clk 0:01:26.4]} 23. Kb2 {[%clk 0:02:05.6]} 23... b6
{[%clk 0:01:06.2]} 24. Rhg1 {[%clk 0:01:57.9]} 24... Kh8 {[%clk 0:01:06]} 25.
Qc2 {[%clk 0:01:46.6]} 25... Ra5 {[%clk 0:01:01]} 26. Ra1 {[%clk 0:01:45.7]}
26... Rfa8 {[%clk 0:01:01.2]} 27. Rxa5 {[%clk 0:01:45.8]} 27... Rxa5 {[%clk
0:01:02.1]} 28. Ra1 {[%clk 0:01:25]} 28... Rxa1 {[%clk 0:00:59.1]} 29. Kxa1
{[%clk 0:01:23.5]} 29... Bf6 {[%clk 0:00:42.7]} 30. Qd1 {[%clk 0:01:18.2]} 30...
Bxh4 {[%clk 0:00:38.1]} 31. Qh1 {[%clk 0:01:13.2]} 31... Bxf2 {[%clk 0:00:29.3]}
32. Qxh5 {[%clk 0:01:13.1]} 32... Ne8 {[%clk 0:00:26.4]} 33. Na4 {[%clk
0:01:03.4]} 33... Nf6 {[%clk 0:00:20]} 34. Qg5 {[%clk 0:00:59]} 34... Qd8 {[%clk
0:00:05.5]} 35. Kb1 {[%clk 0:00:48.6]} 35... Bd4 {[%clk 0:00:04]} 36. Kc2 {[%clk
0:00:39.6]} 36... Qe7 {[%clk 0:00:01.4]} 37. Nxb6 {[%clk 0:00:19.3]} 37... Nxd5
{[%clk 0:00:01.7]} 38. Qxe7 {[%clk 0:00:19.7]} 38... Nxe7 {[%clk 0:00:02.6]} 39.
Nd5 {[%clk 0:00:18.3]} 39... Nc8 {[%clk 0:00:02]} 40. Nxd4 {[%clk 0:00:09.7]}
40... exd4 {[%clk 0:00:01.2]} 41. b6 {[%clk 0:00:09.5]} 41... Nxb6 {[%clk
0:00:01.6]} 42. Nxb6 {[%clk 0:00:10.4]} 42... h5 {[%clk 0:00:01.9]} 43. Nd7
{[%clk 0:00:09.8]} 43... h4 {[%clk 0:00:02.4]} 44. Nf6 {[%clk 0:00:09.7]} 44...
Kg7 {[%clk 0:00:02.7]} 45. Ng4 {[%clk 0:00:09.6]} 45... Kg6 {[%clk 0:00:03.3]}
46. Kd3 {[%clk 0:00:09.1]} 46... Kg5 {[%clk 0:00:03.9]} 47. Ke2 {[%clk
0:00:09.2]} 47... Kg6 {[%clk 0:00:03.7]} 48. Kf2 {[%clk 0:00:09.3]} 48... Kg5
{[%clk 0:00:04.3]} 49. Kg2 {[%clk 0:00:09.7]} 49... d3 {[%clk 0:00:03.5]} 50.
Nf2 {[%clk 0:00:09.7]} 50... d2 {[%clk 0:00:03.5]} 51. Kf1 {[%clk 0:00:08.6]}
51... h3 {[%clk 0:00:01.7]} 52. Nxh3+ {[%clk 0:00:08.2]} 52... Kh4 {[%clk
0:00:02.6]} 53. Nf2 {[%clk 0:00:08.5]} 53... Kg3 {[%clk 0:00:03.2]} 54. Ke2
{[%clk 0:00:09.1]} 1-0

[Event "Late-Titled-Tuesday-Blitz-September-26-2023"]
[Site "Chess.com"]
[Date "2023.09.26"]
[Round "4"]
[White "LeninGuerra"]
[Black "WiseKing_08"]
[Result "0-1"]
[WhiteElo "2537"]
[BlackElo "2365"]
[TimeControl "180+1"]
[EndTime "14:38:59 PDT"]
[Termination "WiseKing_08 won on time"]

1. e4 {[%clk 0:03:00.9]} 1... c6 {[%clk 0:02:54.8]} 2. Nf3 {[%clk 0:02:58.8]}
2... d5 {[%clk 0:02:54.1]} 3. exd5 {[%clk 0:02:59.1]} 3... cxd5 {[%clk 0:02:55]}
4. Ne5 {[%clk 0:02:58.7]} 4... Nc6 {[%clk 0:02:50]} 5. Bb5 {[%clk 0:02:57.9]}
5... Bd7 {[%clk 0:02:49.4]} 6. Bxc6 {[%clk 0:02:50.6]} 6... bxc6 {[%clk
0:02:44]} 7. O-O {[%clk 0:02:50.7]} 7... Nf6 {[%clk 0:02:41.7]} 8. b3 {[%clk
0:02:50.7]} 8... e6 {[%clk 0:02:41.2]} 9. Bb2 {[%clk 0:02:50.7]} 9... Bd6 {[%clk
0:02:41]} 10. Re1 {[%clk 0:02:50.9]} 10... O-O {[%clk 0:02:40.1]} 11. d3 {[%clk
0:02:50.6]} 11... Qc7 {[%clk 0:02:39.5]} 12. Nd2 {[%clk 0:02:50.1]} 12... a5
{[%clk 0:02:23.6]} 13. c4 {[%clk 0:02:48.9]} 13... c5 {[%clk 0:01:58.9]} 14. d4
{[%clk 0:02:10.9]} 14... cxd4 {[%clk 0:01:54]} 15. Bxd4 {[%clk 0:02:09.8]} 15...
Bc5 {[%clk 0:01:41.6]} 16. Bxc5 {[%clk 0:01:38]} 16... Qxc5 {[%clk 0:01:42.5]}
17. cxd5 {[%clk 0:01:37.4]} 17... Qxd5 {[%clk 0:01:36.6]} 18. Ndc4 {[%clk
0:01:37.2]} 18... Bb5 {[%clk 0:01:26.4]} 19. Qc1 {[%clk 0:01:24.1]} 19... Rac8
{[%clk 0:01:12.1]} 20. Qa3 {[%clk 0:01:18.4]} 20... Bxc4 {[%clk 0:00:41.5]} 21.
Nxc4 {[%clk 0:01:14.6]} 21... Rc5 {[%clk 0:00:29.5]} 22. Re5 {[%clk 0:00:48.6]}
22... Qd4 {[%clk 0:00:23.8]} 23. Rae1 {[%clk 0:00:32.9]} 23... Rxe5 {[%clk
0:00:17.7]} 24. Nxe5 {[%clk 0:00:33.8]} 24... Ne4 {[%clk 0:00:16.7]} 25. Ng4
{[%clk 0:00:18.8]} 25... h5 {[%clk 0:00:16.4]} 26. Qa4 {[%clk 0:00:11]} 26...
Qxa4 {[%clk 0:00:09.1]} 27. bxa4 {[%clk 0:00:11.9]} 27... hxg4 {[%clk
0:00:03.5]} 28. Rxe4 {[%clk 0:00:11.5]} 28... Rb8 {[%clk 0:00:03.7]} 29. g3
{[%clk 0:00:10.6]} 29... Rb2 {[%clk 0:00:01.1]} 30. Rxg4 {[%clk 0:00:09.3]}
30... Rxa2 {[%clk 0:00:01.8]} 31. Rc4 {[%clk 0:00:09.4]} 31... Ra1+ {[%clk
0:00:02]} 32. Kg2 {[%clk 0:00:09.7]} 32... g6 {[%clk 0:00:02.3]} 33. h4 {[%clk
0:00:09.5]} 33... Kg7 {[%clk 0:00:02.7]} 34. Kf3 {[%clk 0:00:09.6]} 34... Ra2
{[%clk 0:00:03.4]} 35. Ke3 {[%clk 0:00:09.4]} 35... Kf6 {[%clk 0:00:03.6]} 36.
Rf4+ {[%clk 0:00:09.5]} 36... Ke7 {[%clk 0:00:03.6]} 37. Kd3 {[%clk 0:00:09.7]}
37... Ra3+ {[%clk 0:00:04]} 38. Kc2 {[%clk 0:00:08.3]} 38... e5 {[%clk 0:00:04]}
39. Re4 {[%clk 0:00:04.7]} 39... Kd6 {[%clk 0:00:04.1]} 40. Kb2 {[%clk
0:00:04.7]} 40... Rf3 {[%clk 0:00:04]} 41. Re2 {[%clk 0:00:04.7]} 41... f5
{[%clk 0:00:03.3]} 42. Rd2+ {[%clk 0:00:04]} 42... Ke6 {[%clk 0:00:03.2]} 43.
Re2 {[%clk 0:00:03.9]} 43... e4 {[%clk 0:00:03.1]} 44. Ka2 {[%clk 0:00:02.9]}
44... Ke5 {[%clk 0:00:03.4]} 45. Kb2 {[%clk 0:00:03.1]} 45... Kd4 {[%clk
0:00:03.8]} 46. Rd2+ {[%clk 0:00:01.7]} 46... Kc4 {[%clk 0:00:03.7]} 47. Rd6
{[%clk 0:00:01.9]} 47... Rxf2+ {[%clk 0:00:03.7]} 48. Kb1 {[%clk 0:00:01]} 48...
e3 {[%clk 0:00:04.6]} 0-1

[Event "Late-Titled-Tuesday-Blitz-September-26-2023"]
[Site "Chess.com"]
[Date "2023.09.26"]
[Round "4"]
[White "Sanan_Sjugirov"]
[Black "krzyzan94"]
[Result "1-0"]
[WhiteElo "2986"]
[BlackElo "2813"]
[TimeControl "180+1"]
[EndTime "14:39:01 PDT"]
[Termination "Sanan_Sjugirov won on time"]

1. e4 {[%clk 0:03:00.9]} 1... c5 {[%clk 0:02:58.8]} 2. Nf3 {[%clk 0:03:01.1]}
2... Nc6 {[%clk 0:02:58]} 3. Bb5 {[%clk 0:03:00.8]} 3... a6 {[%clk 0:02:55.9]}
4. Bxc6 {[%clk 0:03:00.7]} 4... dxc6 {[%clk 0:02:56.8]} 5. d3 {[%clk 0:02:58.7]}
5... Bg4 {[%clk 0:02:55.7]} 6. Nbd2 {[%clk 0:02:57.6]} 6... e5 {[%clk
0:02:50.8]} 7. h3 {[%clk 0:02:57.9]} 7... Bxf3 {[%clk 0:02:49.6]} 8. Nxf3 {[%clk
0:02:58.8]} 8... Bd6 {[%clk 0:02:48.1]} 9. h4 {[%clk 0:02:56.2]} 9... Ne7 {[%clk
0:02:39.7]} 10. h5 {[%clk 0:02:56]} 10... h6 {[%clk 0:02:37.2]} 11. Be3 {[%clk
0:02:53.4]} 11... Qd7 {[%clk 0:02:12.7]} 12. Nd2 {[%clk 0:02:50.9]} 12... b6
{[%clk 0:02:03.2]} 13. a4 {[%clk 0:02:50.2]} 13... a5 {[%clk 0:02:01.4]} 14. g4
{[%clk 0:02:46.9]} 14... Bc7 {[%clk 0:01:59.2]} 15. Qf3 {[%clk 0:02:45.4]} 15...
Nc8 {[%clk 0:01:47.6]} 16. Nc4 {[%clk 0:02:43.4]} 16... Nd6 {[%clk 0:01:46.7]}
17. Nxe5 {[%clk 0:02:31.5]} 17... Qe6 {[%clk 0:01:44.4]} 18. Nxc6 {[%clk
0:02:25.4]} 18... Kd7 {[%clk 0:01:27.9]} 19. e5 {[%clk 0:02:24]} 19... Ne8
{[%clk 0:00:11.3]} 20. Ne7 {[%clk 0:02:06]} 20... Kxe7 {[%clk 0:00:05.3]} 21.
Qxa8 {[%clk 0:02:04.8]} 21... Bxe5 {[%clk 0:00:05.3]} 22. O-O-O {[%clk
0:01:29.2]} 22... Qa2 {[%clk 0:00:05.2]} 23. c3 {[%clk 0:01:27.3]} 23... Qa1+
{[%clk 0:00:04.5]} 24. Kc2 {[%clk 0:01:26.7]} 24... Qxa4+ {[%clk 0:00:04.7]} 25.
Kb1 {[%clk 0:01:18]} 25... Bxc3 {[%clk 0:00:03.6]} 26. Qb7+ {[%clk 0:01:09.7]}
26... Kf8 {[%clk 0:00:03.4]} 27. Qxb6 {[%clk 0:01:08]} 27... Bd4 {[%clk
0:00:02.9]} 28. Bxd4 {[%clk 0:01:03]} 28... cxd4 {[%clk 0:00:03.8]} 29. Rhe1
{[%clk 0:01:00.9]} 29... Kg8 {[%clk 0:00:03.9]} 30. Rc1 {[%clk 0:00:47.2]} 30...
Kh7 {[%clk 0:00:03]} 31. Rc4 {[%clk 0:00:47.8]} 31... Qd7 {[%clk 0:00:02.5]} 32.
Qxd4 {[%clk 0:00:48.5]} 32... Qb7 {[%clk 0:00:02.4]} 33. Qe4+ {[%clk 0:00:48.5]}
33... Qxe4 {[%clk 0:00:03]} 34. Rcxe4 {[%clk 0:00:49.1]} 34... Nf6 {[%clk
0:00:03.4]} 35. Rf4 {[%clk 0:00:48.5]} 35... Rd8 {[%clk 0:00:04]} 36. Re5 {[%clk
0:00:43.3]} 36... Rxd3 {[%clk 0:00:03.5]} 37. Rxa5 {[%clk 0:00:42.2]} 37... Nd5
{[%clk 0:00:03.5]} 38. Rc4 {[%clk 0:00:39.2]} 38... Nf6 {[%clk 0:00:02.7]} 39.
Rf5 {[%clk 0:00:35.4]} 39... Nd7 {[%clk 0:00:01.8]} 40. Kc2 {[%clk 0:00:32.6]}
40... Rd6 {[%clk 0:00:02]} 41. b4 {[%clk 0:00:31.5]} 41... f6 {[%clk 0:00:02.2]}
42. Rc3 {[%clk 0:00:28.7]} 42... Ne5 {[%clk 0:00:02.4]} 43. Rf4 {[%clk 0:00:27]}
43... Nc6 {[%clk 0:00:01.2]} 44. Rd3 {[%clk 0:00:20.3]} 44... Re6 {[%clk
0:00:01.7]} 45. Re3 {[%clk 0:00:20.3]} 45... Ne5 {[%clk 0:00:02.1]} 46. Kb3
{[%clk 0:00:19.6]} 46... Rb6 {[%clk 0:00:02.3]} 47. Rfe4 {[%clk 0:00:18.8]}
47... Nd7 {[%clk 0:00:02.7]} 48. Rc4 {[%clk 0:00:18.7]} 48... Ne5 {[%clk
0:00:02.8]} 49. Rc7 {[%clk 0:00:14]} 49... Nxg4 {[%clk 0:00:02.6]} 50. Ree7
{[%clk 0:00:14.1]} 50... Kh8 {[%clk 0:00:02.1]} 51. Rxg7 {[%clk 0:00:14]} 51...
Nxf2 {[%clk 0:00:01.8]} 52. Rh7+ {[%clk 0:00:13.8]} 52... Kg8 {[%clk 0:00:01.8]}
53. Rhd7 {[%clk 0:00:14.7]} 53... Rb8 {[%clk 0:00:01.4]} 54. Rg7+ {[%clk
0:00:14.9]} 54... Kh8 {[%clk 0:00:01.6]} 55. Rh7+ {[%clk 0:00:15.8]} 55... Kg8
{[%clk 0:00:01.8]} 56. Rcg7+ {[%clk 0:00:16.7]} 56... Kf8 {[%clk 0:00:02]} 57.
Rg2 {[%clk 0:00:14.8]} 1-0

[Event "Late-Titled-Tuesday-Blitz-September-26-2023"]
[Site "Chess.com"]
[Date "2023.09.26"]
[Round "4"]
[White "falzehope0"]
[Black "chesselephant"]
[Result "0-1"]
[WhiteElo "2341"]
[BlackElo "2526"]
[TimeControl "180+1"]
[EndTime "14:39:01 PDT"]
[Termination "chesselephant won by resignation"]

1. d4 {[%clk 0:03:00.9]} 1... Nf6 {[%clk 0:02:56.2]} 2. e3 {[%clk 0:02:54.1]}
2... b6 {[%clk 0:02:55.7]} 3. f4 {[%clk 0:02:53.1]} 3... Bb7 {[%clk 0:02:54.9]}
4. Nf3 {[%clk 0:02:52.9]} 4... c5 {[%clk 0:02:54]} 5. c3 {[%clk 0:02:50.3]} 5...
e6 {[%clk 0:02:53.3]} 6. Bd3 {[%clk 0:02:12.6]} 6... d6 {[%clk 0:02:50.5]} 7.
O-O {[%clk 0:02:06.9]} 7... Be7 {[%clk 0:02:48.6]} 8. Nbd2 {[%clk 0:02:02.8]}
8... O-O {[%clk 0:02:38.5]} 9. a3 {[%clk 0:02:02.1]} 9... Nbd7 {[%clk
0:02:31.9]} 10. e4 {[%clk 0:01:56.8]} 10... cxd4 {[%clk 0:02:29.9]} 11. cxd4
{[%clk 0:01:56.7]} 11... e5 {[%clk 0:02:25.6]} 12. fxe5 {[%clk 0:01:52.1]} 12...
dxe5 {[%clk 0:02:26]} 13. d5 {[%clk 0:01:52.4]} 13... Ng4 {[%clk 0:01:50.6]} 14.
Nc4 {[%clk 0:01:45.4]} 14... Bc5+ {[%clk 0:01:40.3]} 15. Kh1 {[%clk 0:01:41.6]}
15... Nf2+ {[%clk 0:01:14.5]} 16. Rxf2 {[%clk 0:01:36.4]} 16... Bxf2 {[%clk
0:01:15.4]} 17. Ncxe5 {[%clk 0:01:14.9]} 17... Nxe5 {[%clk 0:01:05.4]} 18. Nxe5
{[%clk 0:01:14.7]} 18... Rc8 {[%clk 0:00:57.2]} 19. Bf4 {[%clk 0:01:03.7]} 19...
Bd4 {[%clk 0:00:54.1]} 20. Rb1 {[%clk 0:00:57.5]} 20... Qf6 {[%clk 0:00:39.6]}
21. Nf3 {[%clk 0:00:32.9]} 21... Qxf4 {[%clk 0:00:20.9]} 22. Nxd4 {[%clk
0:00:33]} 22... g6 {[%clk 0:00:19.5]} 23. h3 {[%clk 0:00:21.1]} 23... Rfe8
{[%clk 0:00:13.1]} 24. Nf3 {[%clk 0:00:09]} 24... Rc7 {[%clk 0:00:10]} 25. b4
{[%clk 0:00:08.8]} 25... Rec8 {[%clk 0:00:10.3]} 26. Qe2 {[%clk 0:00:07.9]}
26... Rc1+ {[%clk 0:00:10.2]} 27. Rxc1 {[%clk 0:00:08]} 27... Rxc1+ {[%clk
0:00:10.9]} 28. Ng1 {[%clk 0:00:08.7]} 28... Qg3 {[%clk 0:00:06.5]} 29. Bc4
{[%clk 0:00:06.9]} 29... Qc3 {[%clk 0:00:04.5]} 30. Bb5 {[%clk 0:00:06.3]} 30...
Re1 {[%clk 0:00:04.4]} 31. Qf2 {[%clk 0:00:05.8]} 31... Qe3 {[%clk 0:00:03.9]}
32. Qxe3 {[%clk 0:00:05.1]} 32... Rxe3 {[%clk 0:00:04.8]} 33. Nf3 {[%clk
0:00:05.3]} 33... Rxe4 {[%clk 0:00:05]} 34. Ng5 {[%clk 0:00:05.2]} 34... Re1+
{[%clk 0:00:05.4]} 35. Kh2 {[%clk 0:00:05.3]} 35... Bxd5 {[%clk 0:00:06.3]} 36.
Be8 {[%clk 0:00:04.2]} 36... h6 {[%clk 0:00:06.4]} 37. Nf3 {[%clk 0:00:04.2]}
37... Bxf3 {[%clk 0:00:07.1]} 38. gxf3 {[%clk 0:00:04.8]} 38... Ra1 {[%clk
0:00:08]} 39. a4 {[%clk 0:00:04.1]} 39... a5 {[%clk 0:00:07.4]} 40. bxa5 {[%clk
0:00:04.2]} 40... bxa5 {[%clk 0:00:08.3]} 41. Kg3 {[%clk 0:00:02.9]} 41... Kg7
{[%clk 0:00:09]} 42. Bb5 {[%clk 0:00:03.1]} 42... Kf6 {[%clk 0:00:09.9]} 43. Kf4
{[%clk 0:00:03.6]} 43... Ra3 {[%clk 0:00:10]} 44. h4 {[%clk 0:00:03.2]} 44...
g5+ {[%clk 0:00:08]} 45. hxg5+ {[%clk 0:00:04.1]} 45... hxg5+ {[%clk 0:00:08.1]}
46. Kg4 {[%clk 0:00:05]} 46... Kg6 {[%clk 0:00:06]} 47. Kg3 {[%clk 0:00:05.9]}
47... f5 {[%clk 0:00:06.1]} 48. Be8+ {[%clk 0:00:06.1]} 48... Kf6 {[%clk
0:00:06.5]} 49. Bd7 {[%clk 0:00:06.6]} 49... Ke5 {[%clk 0:00:06.8]} 50. Bc6
{[%clk 0:00:06.4]} 50... g4 {[%clk 0:00:06.7]} 51. Kg2 {[%clk 0:00:05.6]} 51...
Kf4 {[%clk 0:00:06.6]} 52. fxg4 {[%clk 0:00:05.3]} 52... fxg4 {[%clk 0:00:07.5]}
53. Kf2 {[%clk 0:00:05.7]} 53... Ra2+ {[%clk 0:00:07.9]} 54. Kg1 {[%clk
0:00:05.7]} 54... g3 {[%clk 0:00:07.8]} 55. Bd5 {[%clk 0:00:06.4]} 55... Rxa4
{[%clk 0:00:07.6]} 56. Kf1 {[%clk 0:00:06.7]} 56... Rd4 {[%clk 0:00:07]} 57. Bb3
{[%clk 0:00:06.3]} 57... Kf3 {[%clk 0:00:06.4]} 58. Ba4 {[%clk 0:00:06]} 58...
Rxa4 {[%clk 0:00:06.2]} 59. Ke1 {[%clk 0:00:06.5]} 59... Ra2 {[%clk 0:00:06.3]}
60. Kd1 {[%clk 0:00:06.6]} 60... g2 {[%clk 0:00:06.4]} 0-1